bitfinex/quotes_SOLUSD_20241225
["timestamp","ask_amount","ask_price","bid_price","bid_amount"]
[1735092016684,6.0881,199.39,199.29,15.12256866]
[1735092017174,6.0881,199.45,199.31,15.12256866]
[1735092017480,0.94031133,199.44,199.31,15.12256866]
[1735092018083,0.94031133,199.44,199.31,16.86156866]
[1735092019268,0.94031133,199.44,199.33,15.12256866]
[1735092019685,6.0881,199.45,199.34,30.0]
[1735092019885,6.0881,199.45,199.35,15.12256866]
[1735092021181,0.94020169,199.44,199.31,1.739]
[1735092021418,23.776884,199.43,199.28,15.12256866]
[1735092021608,23.776884,199.41,199.28,45.12256866]
[1735092021905,0.94035392,199.4,199.28,45.12256866]
[1735092022203,23.776884,199.42,199.28,45.12256866]
[1735092022417,0.94044048,199.41,199.3,15.12256866]
[1735092022715,0.9404442,199.42,199.3,45.12256866]
[1735092024408,0.9404442,199.42,199.3,15.12256866]
[1735092027103,0.9404442,199.42,199.28,38.89945266]
[1735092027303,0.9404442,199.42,199.29,30.0]
[1735092027482,0.9404442,199.42,199.3,15.12256866]
[1735092029219,0.9404442,199.42,199.29,30.0]
[1735092029399,0.9404442,199.42,199.29,45.12256866]
[1735092029710,6.0881,199.45,199.35,15.12256866]
[1735092032121,6.0881,199.45,199.33,15.12256866]
[1735092032925,6.0881,199.45,199.34,30.0]
[1735092033220,6.0881,199.45,199.33,15.12256866]
[1735092036424,6.0881,199.45,199.34,30.0]
[1735092036926,0.94019725,199.44,199.33,9.67231545]
[1735092037426,6.0881,199.45,199.33,9.67231545]
[1735092037728,0.5,199.4,199.33,9.67231545]
[1735092039017,0.5,199.4,199.36,9.67231545]
[1735092039424,0.45987964,199.4,199.38,30.0]
[1735092039715,0.45987964,199.4,199.38,39.67231545]
[1735092040306,0.45987964,199.4,199.34,313.6668]
[1735092040307,0.45987964,199.4,199.36,30.0]
[1735092040518,0.45987964,199.4,199.34,31.6668]
[1735092040830,0.45987964,199.4,199.34,1.6668]
[1735092041439,0.45987964,199.4,199.32,39.67231545]
[1735092042332,0.45987964,199.4,199.32,30.0]
[1735092043519,0.45987964,199.4,199.33,15.11664492]
[1735092044840,0.45987964,199.4,199.37,45.11664492]
[1735092045138,0.45987964,199.4,199.39,45.11664492]
[1735092045642,0.45987964,199.4,199.39,68.89352892]
[1735092046007,0.45987964,199.4,199.39,69.01901892]
[1735092046473,0.45987964,199.4,199.39,53.776884]
[1735092046626,0.45987964,199.4,199.39,68.89352892]
[1735092047841,0.45987964,199.4,199.39,380.89352892]
[1735092048047,0.45987964,199.4,199.39,381.01901892]
[1735092048212,0.45987964,199.4,199.39,393.55721892]
[1735092048543,0.45987964,199.4,199.39,393.43172892]
[1735092048845,0.45987964,199.4,199.39,380.89352892]
[1735092050739,0.45987964,199.4,199.39,68.89352892]
[1735092051954,0.45987964,199.4,199.39,81.43172892]
[1735092052253,0.45987964,199.4,199.39,81.55721892]
[1735092053635,7.964e-05,199.4,199.39,81.55721892]
[1735092053818,7.964e-05,199.4,199.39,393.55721892]
[1735092054552,6.4627,199.54,199.47,30.0]
[1735092054848,16.79091253,199.59,199.49,45.11664492]
[1735092054849,6.6007,199.59,199.49,45.11664492]
[1735092055425,6.6007,199.59,199.5,15.11664492]
[1735092056153,6.6007,199.59,199.52,15.11664492]
[1735092056333,6.6007,199.59,199.53,15.11664492]
[1735092056521,0.93943133,199.65,199.53,15.11664492]
[1735092056522,6.6007,199.64,199.53,15.11664492]
[1735092058548,6.6007,199.64,199.54,15.11664492]
[1735092058751,24.71618152,199.63,199.5,15.11664492]
[1735092058969,24.71618152,199.63,199.47,1.8224]
[1735092058970,24.71618152,199.63,199.48,45.11664492]
[1735092059126,24.71618152,199.63,199.48,30.0]
[1735092060460,24.71618152,199.63,199.49,15.11664492]
[1735092062649,24.71618152,199.63,199.51,15.11664492]
[1735092066151,6.6007,199.64,199.53,30.0]
[1735092066351,6.6007,199.64,199.53,45.11664492]
[1735092067184,0.93939393,199.68,199.58,30.0]
[1735092067354,6.4375,199.69,199.58,30.0]
[1735092067355,6.4375,199.69,199.59,15.11664492]
[1735092068079,6.4375,199.69,199.6,15.11664492]
[1735092068275,6.4375,199.69,199.6,45.11664492]
[1735092068485,0.6471618,199.72,199.63,15.11664492]
[1735092068783,0.6471618,199.72,199.64,15.11664492]
[1735092068947,0.6471618,199.72,199.67,15.11664492]
[1735092069155,0.6471618,199.72,199.68,15.11664492]
[1735092070179,0.6471618,199.72,199.69,45.11664492]
[1735092070372,0.6471618,199.72,199.71,15.11664492]
[1735092070555,0.6471618,199.72,199.71,45.11664492]
[1735092070752,0.6471618,199.72,199.71,15.11664492]
[1735092070987,0.6471618,199.72,199.7,45.11664492]
[1735092073082,0.6471618,199.72,199.71,15.11664492]
[1735092075961,0.6471618,199.72,199.67,343.7392]
[1735092076155,0.6471618,199.72,199.68,15.11664492]
[1735092076368,0.6471618,199.72,199.67,31.7392]
[1735092076671,0.6471618,199.72,199.67,30.0]
[1735092077956,0.6471618,199.72,199.66,15.11664492]
[1735092078276,0.6471618,199.72,199.64,15.11664492]
[1735092079059,0.6471618,199.72,199.63,30.0]
[1735092079754,0.6471618,199.72,199.63,45.11664492]
[1735092080372,0.93888763,199.71,199.61,15.11664492]
[1735092080558,0.93888763,199.71,199.58,15.11664492]
[1735092080761,23.776884,199.7,199.56,15.11664492]
[1735092080978,23.776884,199.68,199.55,45.11664492]
[1735092081187,0.93921692,199.67,199.55,45.11664492]
[1735092082098,0.93921692,199.67,199.56,15.11664492]
[1735092083089,23.776884,199.71,199.58,15.11664492]
[1735092083390,23.776884,199.69,199.58,15.11664492]
[1735092083704,0.93915153,199.68,199.57,15.11664492]
[1735092084286,6.0847,199.66,199.55,15.11664492]
[1735092084477,0.93938932,199.65,199.54,15.11664492]
[1735092085068,0.93938932,199.65,199.55,15.11664492]
[1735092086460,23.776884,199.64,199.53,15.11664492]
[1735092086689,0.93945293,199.63,199.52,15.11664492]
[1735092086987,23.776884,199.64,199.52,15.11664492]
[1735092087289,0.9394384,199.63,199.52,15.11664492]
[1735092089170,0.9394384,199.63,199.54,15.11664492]
[1735092090502,0.9394384,199.63,199.52,15.11664492]
[1735092092209,6.0847,199.66,199.56,15.11664492]
[1735092092504,0.93921624,199.65,199.56,15.11664492]
[1735092093702,23.776884,199.64,199.54,15.11664492]
[1735092093909,23.776884,199.62,199.48,15.11664492]
[1735092094112,23.776884,199.59,199.44,15.11664492]
[1735092094281,23.776884,199.57,199.44,15.11664492]
[1735092094479,0.93983024,199.56,199.44,15.11664492]
[1735092094702,23.776884,199.55,199.44,15.11664492]
[1735092095000,0.93983367,199.58,199.46,15.11664492]
[1735092095208,23.776884,199.57,199.44,15.11664492]
[1735092095418,0.93983646,199.56,199.44,15.11664492]
[1735092095707,0.93983646,199.56,199.42,30.0]
[1735092095708,6.6249,199.6,199.46,15.11664492]
[1735092095912,23.776884,199.58,199.46,15.11664492]
[1735092096112,0.93965492,199.57,199.46,15.11664492]
[1735092096287,23.776884,199.58,199.41,1.7976]
[1735092096288,6.6249,199.6,199.5,15.11664492]
[1735092096494,6.6249,199.6,199.52,15.11664492]
[1735092098286,6.6249,199.6,199.52,45.11664492]
[1735092098593,6.6249,199.6,199.52,15.11664492]
[1735092098897,6.6249,199.6,199.52,45.11664492]
[1735092099095,6.6249,199.6,199.52,15.11664492]
[1735092099511,6.6249,199.6,199.52,45.11664492]
[1735092099712,6.6249,199.6,199.52,15.11664492]
[1735092101210,6.6249,199.6,199.5,15.11664492]
[1735092101410,0.9394627,199.59,199.5,15.11664492]
[1735092104924,6.6249,199.6,199.5,15.11664492]
[1735092105220,0.93950538,199.59,199.5,15.11664492]
[1735092105405,0.93950538,199.59,199.48,15.11664492]
[1735092105603,0.93950538,199.59,199.49,15.11664492]
[1735092107023,0.93950538,199.59,199.48,15.11664492]
[1735092107522,0.93950538,199.59,199.47,15.11664492]
[1735092110126,23.776884,199.58,199.46,30.0]
[1735092110298,0.9396886,199.57,199.44,45.11664492]
[1735092110624,23.776884,199.58,199.46,15.11664492]
[1735092110927,6.6249,199.6,199.52,15.11664492]
[1735092111429,6.6249,199.6,199.51,15.11664492]
[1735092113421,0.93943898,199.59,199.45,30.0]
[1735092113631,23.776884,199.58,199.45,45.11664492]
[1735092113823,0.93968871,199.57,199.45,45.11664492]
[1735092114640,0.93968871,199.57,199.47,15.11664492]
[1735092117731,23.776884,199.59,199.47,15.11664492]
[1735092117903,0.93958413,199.58,199.47,15.11664492]
[1735092118414,0.93958413,199.58,199.47,45.11664492]
[1735092118613,6.6249,199.6,199.51,15.11664492]
[1735092119027,6.6249,199.6,199.52,15.11664492]
[1735092119607,6.6249,199.6,199.52,45.11664492]
[1735092119806,6.3456,199.66,199.53,15.11664492]
[1735092120026,0.93943299,199.65,199.51,15.11664492]
[1735092121206,23.776884,199.64,199.49,15.11664492]
[1735092121500,23.776884,199.62,199.49,15.11664492]
[1735092121718,0.93955525,199.61,199.49,15.11664492]
[1735092122836,6.3456,199.66,199.51,15.11664492]
[1735092123020,23.776884,199.64,199.51,15.11664492]
[1735092123333,0.9394063,199.63,199.51,15.11664492]
[1735092123936,0.9394063,199.63,199.49,15.11664492]
[1735092123937,23.776884,199.62,199.49,15.11664492]
[1735092124121,23.776884,199.6,199.45,16.83904492]
[1735092124314,0.93971468,199.59,199.45,16.83904492]
[1735092124504,23.776884,199.58,199.45,16.83904492]
[1735092124833,23.776884,199.56,199.45,16.83904492]
[1735092125035,0.93974244,199.55,199.45,16.83904492]
[1735092125332,23.776884,199.56,199.45,16.83904492]
[1735092125533,0.93971614,199.55,199.45,16.83904492]
[1735092125730,0.93971531,199.57,199.47,15.11664492]
[1735092126034,0.93958159,199.6,199.49,15.11664492]
[1735092126214,23.776884,199.59,199.47,15.11664492]
[1735092126423,23.776884,199.57,199.47,15.11664492]
[1735092126614,0.93974889,199.56,199.47,15.11664492]
[1735092126931,23.776884,199.57,199.47,15.11664492]
[1735092127106,0.9397289,199.56,199.47,15.11664492]
[1735092127306,23.776884,199.57,199.47,15.11664492]
[1735092127506,0.93970057,199.56,199.47,15.11664492]
[1735092127737,23.776884,199.57,199.47,15.11664492]
[1735092127939,0.9396966,199.56,199.47,15.11664492]
[1735092128114,0.93966929,199.58,199.47,15.11664492]
[1735092128326,0.93956073,199.6,199.47,15.11664492]
[1735092129122,0.93956073,199.6,199.49,15.11664492]
[1735092129950,0.93956073,199.6,199.51,15.11664492]
[1735092130153,6.3456,199.61,199.53,15.11664492]
[1735092132117,0.9395094,199.66,199.53,15.11664492]
[1735092132118,7.2551094,199.66,199.53,15.11664492]
[1735092133637,23.776884,199.65,199.53,15.11664492]
[1735092133840,0.93939,199.64,199.53,15.11664492]
[1735092134829,0.93939,199.64,199.51,15.11664492]
[1735092135026,23.776884,199.63,199.46,30.0]
[1735092135229,23.776884,199.61,199.48,15.11664492]
[1735092135442,0.93963726,199.6,199.48,15.11664492]
[1735092139228,30.092484,199.59,199.46,15.11664492]
[1735092139428,0.93970714,199.58,199.46,15.11664492]
[1735092142363,23.776884,199.57,199.46,15.11664492]
[1735092142523,0.93980131,199.56,199.43,15.11664492]
[1735092143142,0.93980131,199.56,199.44,15.11664492]
[1735092143473,23.776884,199.55,199.43,15.11664492]
[1735092143629,0.93981741,199.54,199.44,15.11664492]
[1735092143831,23.776884,199.57,199.44,15.11664492]
[1735092143832,0.93976971,199.56,199.45,15.11664492]
[1735092144111,7.25527436,199.59,199.5,15.11664492]
[1735092144548,6.3156,199.59,199.5,15.11664492]
[1735092144859,0.93954911,199.58,199.5,15.11664492]
[1735092145020,0.93954911,199.58,199.49,15.11664492]
[1735092145223,6.3156,199.59,199.49,15.11664492]
[1735092145452,6.3156,199.59,199.5,15.11664492]
[1735092145657,6.3156,199.59,199.48,30.0]
[1735092145658,6.3156,199.59,199.51,15.11664492]
[1735092145953,6.3156,199.59,199.52,15.11664492]
[1735092146160,6.3156,199.59,199.51,15.11664492]
[1735092151559,6.3156,199.59,199.51,45.11664492]
[1735092151931,6.94622787,199.64,199.51,45.11664492]
[1735092152262,6.94622787,199.64,199.51,15.11664492]
[1735092152639,6.94622787,199.64,199.51,45.11664492]
[1735092152966,6.0068,199.64,199.57,15.11664492]
[1735092153129,7.68168579,199.69,199.59,45.11664492]
[1735092153327,7.68168579,199.69,199.61,15.11664492]
[1735092154060,6.94584051,199.7,199.61,15.11664492]
[1735092154261,0.93908093,199.69,199.61,15.11664492]
[1735092154426,0.93908093,199.69,199.59,15.11664492]
[1735092156567,0.93908093,199.69,199.56,1.7196]
[1735092156731,23.776884,199.68,199.55,15.11664492]
[1735092156929,0.93923626,199.67,199.57,15.11664492]
[1735092157446,23.776884,199.66,199.51,1.7455]
[1735092157755,6.1063,199.63,199.51,1.7455]
[1735092157954,0.93947053,199.62,199.52,15.11664492]
[1735092159354,0.93947053,199.62,199.51,1.7455]
[1735092159735,0.93947053,199.62,199.52,15.11664492]
[1735092160648,6.1063,199.63,199.54,15.11664492]
[1735092160851,6.1063,199.63,199.56,15.11664492]
[1735092161434,0.93929159,199.62,199.51,1.7455]
[1735092161741,0.93929159,199.62,199.5,15.11664492]
[1735092162649,23.776884,199.61,199.5,15.11664492]
[1735092162868,23.776884,199.59,199.48,15.11664492]
[1735092163059,23.776884,199.57,199.46,16.86214492]
[1735092163257,0.93973667,199.56,199.46,16.86214492]
[1735092163454,0.93973667,199.56,199.48,15.11664492]
[1735092163963,23.776884,199.62,199.52,15.11664492]
[1735092164134,0.93952475,199.61,199.52,15.11664492]
[1735092164754,6.1063,199.63,199.52,15.11664492]
[1735092164956,0.93942065,199.62,199.52,15.11664492]
[1735092171182,0.93942065,199.62,199.49,30.0]
[1735092171393,0.93942065,199.62,199.52,15.11664492]
[1735092176311,0.93942065,199.62,199.51,9.65551777]
[1735092178119,0.93942065,199.62,199.53,9.65551777]
[1735092180808,0.93942065,199.62,199.49,30.0]
[1735092181009,23.776884,199.61,199.45,9.65551777]
[1735092181312,23.776884,199.59,199.47,9.65551777]
[1735092181516,0.93970773,199.58,199.47,9.65551777]
[1735092182140,23.776884,199.57,199.47,9.65551777]
[1735092182443,0.93976639,199.56,199.47,9.65551777]
[1735092182646,23.776884,199.57,199.47,9.65551777]
[1735092182813,0.939764,199.56,199.47,9.65551777]
[1735092183011,0.939764,199.56,199.43,30.0]
[1735092183223,6.2235,199.55,199.44,9.65551777]
[1735092183548,0.93979836,199.54,199.44,9.65551777]
[1735092184051,0.93979836,199.54,199.43,30.0]
[1735092184352,23.776884,199.53,199.36,30.0]
[1735092184653,23.776884,199.51,199.38,9.65551777]
[1735092184852,0.94014503,199.5,199.38,9.65551777]
[1735092185217,23.776884,199.54,199.39,30.0]
[1735092185417,0.93992601,199.53,199.43,9.65551777]
[1735092185645,0.93992601,199.53,199.45,9.65551777]
[1735092186456,0.93981142,199.54,199.45,9.65551777]
[1735092187452,6.2235,199.55,199.47,9.65551777]
[1735092188019,6.2235,199.55,199.45,30.0]
[1735092188219,6.2235,199.55,199.47,15.09300434]
[1735092188625,6.1804,199.6,199.5,15.09300434]
[1735092188849,6.1804,199.6,199.52,15.09300434]
[1735092189022,0.93945555,199.59,199.51,15.09300434]
[1735092189225,0.93960539,199.64,199.48,15.09300434]
[1735092189430,0.93960539,199.64,199.46,15.09300434]
[1735092189630,0.93960539,199.64,199.47,15.09300434]
[1735092190062,23.776884,199.63,199.47,15.09300434]
[1735092190372,23.776884,199.61,199.47,15.09300434]
[1735092190573,23.776884,199.59,199.47,15.09300434]
[1735092190730,23.776884,199.57,199.47,15.09300434]
[1735092190929,0.93975355,199.56,199.47,15.09300434]
[1735092191241,23.776884,199.57,199.47,15.09300434]
[1735092191441,0.9397343,199.56,199.47,15.09300434]
[1735092194765,23.776884,199.64,199.47,15.09300434]
[1735092194954,23.776884,199.62,199.47,15.09300434]
[1735092195159,0.93961964,199.61,199.47,15.09300434]
[1735092195564,23.776884,199.6,199.47,15.09300434]
[1735092195771,0.93964235,199.59,199.47,15.09300434]
[1735092195944,23.776884,199.62,199.49,15.09300434]
[1735092196149,23.776884,199.6,199.49,15.09300434]
[1735092196343,0.93963315,199.59,199.49,15.09300434]
[1735092198399,0.93963315,199.59,199.47,15.09300434]
[1735092200295,2.92566765,199.66,199.51,15.09300434]
[1735092201392,23.776884,199.65,199.49,15.09300434]
[1735092201573,0.93966792,199.64,199.47,15.09300434]
[1735092201776,23.776884,199.63,199.47,15.09300434]
[1735092201991,1.9859837,199.66,199.47,15.09300434]
[1735092201992,23.776884,199.61,199.47,15.09300434]
[1735092202278,23.776884,199.59,199.47,15.09300434]
[1735092202499,23.776884,199.57,199.47,15.09300434]
[1735092202706,0.93979045,199.56,199.45,15.09300434]
[1735092205313,0.93979045,199.56,199.44,30.0]
[1735092205612,0.93979045,199.56,199.46,15.09300434]
[1735092208199,0.93979045,199.56,199.45,9.66156167]
[1735092208782,0.93979045,199.56,199.46,30.0]
[1735092208987,23.776884,199.6,199.49,9.66156167]
[1735092209294,0.93960275,199.64,199.53,9.66156167]
[1735092210115,0.93960275,199.64,199.55,9.66156167]
[1735092210282,0.93936766,199.63,199.55,9.66156167]
[1735092210478,0.93936864,199.65,199.57,9.66156167]
[1735092210703,0.93936864,199.65,199.55,9.66156167]
[1735092211014,15.360759,199.68,199.55,9.66156167]
[1735092211215,0.93939437,199.67,199.55,9.66156167]
[1735092213882,20.99620404,199.69,199.57,30.0]
[1735092214111,0.93924104,199.69,199.59,9.66156167]
[1735092215630,0.93924104,199.69,199.61,9.66156167]
[1735092215929,0.6471618,199.72,199.67,9.66156167]
[1735092216291,0.6471618,199.72,199.61,30.0]
[1735092216692,0.6471618,199.72,199.66,15.06525689]
[1735092217322,0.6471618,199.72,199.66,30.0]
[1735092217508,0.6471618,199.72,199.7,15.06525689]
[1735092217823,0.6471618,199.72,199.71,15.06525689]
[1735092218228,0.6471618,199.72,199.67,15.06525689]
[1735092220925,0.6471618,199.72,199.69,15.06525689]
[1735092222524,0.6471618,199.72,199.67,15.06525689]
[1735092225719,0.6471618,199.72,199.69,15.06525689]
[1735092225920,0.6471618,199.72,199.71,15.06525689]
[1735092226426,0.6471618,199.72,199.69,15.06525689]
[1735092226625,0.6471618,199.72,199.67,15.06525689]
[1735092226834,0.6471618,199.72,199.65,15.06525689]
[1735092227130,0.6471618,199.72,199.57,30.0]
[1735092227337,23.776884,199.71,199.6,15.06525689]
[1735092227639,0.93914864,199.7,199.6,15.06525689]
[1735092228635,0.93914864,199.7,199.57,30.0]
[1735092228845,0.93914864,199.7,199.59,15.06525689]
[1735092230905,0.93914864,199.7,199.61,15.06525689]
[1735092231333,0.93914864,199.7,199.59,15.06525689]
[1735092234133,0.93914864,199.7,199.56,1.6665]
[1735092234339,23.776884,199.69,199.57,15.06525689]
[1735092234635,23.776884,199.67,199.57,15.06525689]
[1735092234810,0.93927269,199.66,199.57,15.06525689]
[1735092235735,6.5748,199.71,199.61,15.06525689]
[1735092236034,0.93902256,199.7,199.61,15.06525689]
[1735092237039,6.5748,199.71,199.63,15.06525689]
[1735092237330,6.5748,199.71,199.65,15.06525689]
[1735092237628,6.5748,199.71,199.63,15.06525689]
[1735092242435,0.6471618,199.72,199.63,15.06525689]
[1735092242739,0.6471618,199.72,199.65,15.06525689]
[1735092242933,0.6471618,199.72,199.67,15.06525689]
[1735092245131,0.6471618,199.72,199.71,15.06525689]
[1735092248155,0.6471618,199.72,199.71,40.42784089]
[1735092252224,0.6471618,199.72,199.71,16.65095689]
[1735092254770,0.6471618,199.72,199.71,40.42784089]
[1735092255632,0.6471618,199.72,199.71,40.55333089]
[1735092258431,6.4754,199.9,199.8,30.0]
[1735092258766,6.4754,199.9,199.82,15.06525689]
[1735092259130,6.4754,199.9,199.82,45.06525689]
[1735092259337,6.4754,199.97,199.87,15.06525689]
[1735092259542,7.41317009,199.97,199.86,15.06525689]
[1735092260665,0.93779673,199.96,199.86,15.06525689]
[1735092261038,6.4754,199.97,199.86,15.06525689]
[1735092261239,7.41317286,199.97,199.86,15.06525689]
[1735092262246,6.4754,199.97,199.86,15.06525689]
[1735092262651,7.41317543,199.97,199.86,15.06525689]
[1735092263068,7.41317543,199.97,199.88,45.06525689]
[1735092263378,8.53767081,200.02,199.9,45.06525689]
[1735092263540,0.93758301,200.01,199.9,45.06525689]
[1735092263935,6.5316,200.02,199.91,15.06525689]
[1735092266179,6.6603,200.06,199.91,15.06525689]
[1735092266385,0.93741749,200.05,199.91,15.06525689]
[1735092267069,0.93741749,200.05,199.91,38.84214089]
[1735092268067,6.6603,200.06,199.91,38.96763089]
[1735092268272,6.6603,200.06,199.91,54.03288778]
[1735092268650,6.6603,200.06,199.98,30.0]
[1735092268856,6.6603,200.11,199.98,45.06525689]
[1735092269056,0.93716611,200.1,199.98,45.06525689]
[1735092269675,0.93716611,200.1,199.98,30.0]
[1735092270075,23.776884,200.09,199.98,30.0]
[1735092270278,0.93724455,200.08,199.98,30.0]
[1735092273462,6.6603,200.11,199.98,30.0]
[1735092273671,24.71404511,200.1,199.99,15.06525689]
[1735092274680,24.71404511,200.1,199.98,45.06525689]
[1735092275058,0.6471618,200.12,200.07,15.06525689]
[1735092275265,0.6471618,200.12,200.09,15.06525689]
[1735092276282,0.6471618,200.12,200.11,15.06525689]
[1735092282262,0.6471618,200.12,200.09,30.0]
[1735092282468,0.6471618,200.12,200.08,1.7682]
[1735092282680,0.6471618,200.12,200.05,15.06525689]
[1735092282983,0.6471618,200.12,200.04,15.06525689]
[1735092283284,0.6471618,200.12,200.06,15.06525689]
[1735092285379,0.6471618,200.12,200.07,15.06525689]
[1735092285595,0.6471618,200.12,200.06,15.06525689]
[1735092292691,0.6471618,200.12,200.07,15.06525689]
[1735092292868,0.6471618,200.12,200.06,15.06525689]
[1735092293388,23.776884,200.11,199.98,31.6004]
[1735092293589,0.93719882,200.1,199.98,31.6004]
[1735092293767,0.93719882,200.1,200.01,15.06525689]
[1735092294987,0.6471618,200.12,200.09,15.06525689]
[1735092297199,0.6471618,200.12,200.11,15.06525689]
[1735092299702,0.6471618,200.12,200.11,45.06525689]
[1735092308087,0.6471618,200.12,200.1,15.06525689]
[1735092308294,0.6471618,200.12,200.09,15.06525689]
[1735092308985,0.6471618,200.12,200.1,15.06525689]
[1735092309693,0.6471618,200.12,200.11,15.06525689]
[1735092311022,0.6471618,200.12,200.08,15.06525689]
[1735092311321,0.6471618,200.12,200.02,15.06525689]
[1735092312518,23.776884,200.11,199.99,30.0]
[1735092312723,23.776884,200.11,200.01,15.06525689]
[1735092314005,0.6471618,200.12,200.02,15.06525689]
[1735092314204,0.6471618,200.12,200.04,15.06525689]
[1735092315843,0.6471618,200.12,200.03,15.06525689]
[1735092316141,24.71399497,200.11,199.96,1.696]
[1735092316299,6.2714,200.1,199.96,1.696]
[1735092316504,23.776884,200.08,199.96,1.696]
[1735092316822,23.776884,200.06,199.95,15.06525689]
[1735092317135,0.93735418,200.05,199.93,45.06525689]
[1735092317440,23.776884,200.04,199.93,45.06525689]
[1735092317614,0.93747508,200.03,199.93,45.06525689]
[1735092317933,0.93747508,200.03,199.87,30.0]
[1735092317934,23.776884,200.01,199.87,30.0]
[1735092318103,23.776884,199.99,199.87,15.06525689]
[1735092318307,23.776884,199.97,199.85,15.06525689]
[1735092318507,23.776884,199.95,199.83,45.06525689]
[1735092318832,6.2714,199.93,199.86,15.06525689]
[1735092319347,6.2714,199.93,199.85,15.06525689]
[1735092321123,29.927284,200.07,199.85,45.06525689]
[1735092321324,0.93776003,200.06,199.85,45.06525689]
[1735092321660,23.776884,200.05,199.87,15.06525689]
[1735092321884,23.776884,200.03,199.87,15.06525689]
[1735092322058,6.1504,200.0,199.87,15.06525689]
[1735092322354,24.71469156,199.99,199.85,15.06525689]
[1735092323559,24.71469156,199.99,199.87,15.06525689]
[1735092323929,24.71469156,199.99,199.83,30.0]
[1735092323930,24.71469156,199.99,199.85,15.06525689]
[1735092326661,24.71469156,199.99,199.85,45.06525689]
[1735092326958,24.71469156,199.99,199.87,15.06525689]
[1735092330585,24.71469156,199.99,199.87,45.06525689]
[1735092331775,0.93780756,199.99,199.87,45.06525689]
[1735092331983,6.1504,200.0,199.89,15.06525689]
[1735092332444,6.1504,200.0,199.89,45.06525689]
[1735092332852,6.1504,200.0,199.91,15.06525689]
[1735092333589,6.1504,200.0,199.92,30.0]
[1735092333774,6.1504,200.0,199.93,15.06525689]
[1735092334281,0.93743125,199.99,199.85,30.0]
[1735092334490,0.93743125,199.99,199.86,45.06525689]
[1735092334653,6.1504,200.0,199.88,45.06525689]
[1735092335588,24.71453245,199.99,199.88,15.06525689]
[1735092335788,24.71453245,199.99,199.86,15.06525689]
[1735092335976,24.71453245,199.99,199.83,30.0]
[1735092335977,24.71453245,199.99,199.82,16.70945689]
[1735092336369,24.71453245,199.99,199.82,15.06525689]
[1735092336760,6.5504,199.98,199.8,15.06525689]
[1735092336959,23.776884,199.96,199.77,31.7667]
[1735092337179,23.776884,199.93,199.77,46.83195689]
[1735092337489,23.776884,199.93,199.77,16.83195689]
[1735092337490,23.776884,199.91,199.77,16.83195689]
[1735092337698,0.93820771,199.92,199.81,30.0]
[1735092337861,6.5504,199.94,199.81,45.06525689]
[1735092338054,6.5504,199.94,199.83,15.06525689]
[1735092339981,6.5504,199.94,199.81,30.0]
[1735092340155,6.5504,199.94,199.83,15.06525689]
[1735092340883,6.5504,199.94,199.83,30.0]
[1735092341060,6.5504,199.94,199.85,15.06525689]
[1735092341787,6.5504,199.98,199.87,15.06525689]
[1735092344909,6.5504,199.98,199.91,15.06525689]
[1735092345074,6.5504,200.03,199.91,15.06525689]
[1735092345276,6.5504,200.03,199.93,15.06525689]
[1735092345800,6.5504,200.03,199.95,15.06525689]
[1735092346012,6.5504,200.09,199.97,15.06525689]
[1735092346302,0.93727,200.08,199.97,15.06525689]
[1735092346518,6.5504,200.09,199.99,15.06525689]
[1735092347612,0.6471618,200.12,200.01,15.06525689]
[1735092349206,0.6471618,200.12,200.02,30.0]
[1735092349410,0.6471618,200.12,200.03,15.06525689]
[1735092351427,24.7138468,200.11,199.95,30.0]
[1735092351604,24.7138468,200.11,199.97,15.06525689]
[1735092352807,24.7138468,200.11,199.99,15.06525689]
[1735092353338,24.7138468,200.11,199.97,15.06525689]
[1735092355488,0.6471618,200.12,200.01,15.06525689]
[1735092355684,0.93699709,200.11,199.99,15.06525689]
[1735092355921,0.93699709,200.11,199.97,15.06525689]
[1735092357127,23.776884,200.1,199.97,45.06525689]
[1735092357334,0.93721796,200.09,199.97,45.06525689]
[1735092359148,0.6471618,200.12,200.01,15.06525689]
[1735092360442,0.6471618,200.12,200.03,15.06525689]
[1735092360608,0.6471618,200.12,200.05,15.06525689]
[1735092360808,0.6471618,200.12,200.01,15.06525689]
[1735092361840,0.93707911,200.11,199.97,45.06525689]
[1735092362253,23.776884,200.1,199.97,45.06525689]
[1735092362408,0.9372048,200.09,199.97,45.06525689]
[1735092364241,23.776884,200.11,199.97,45.06525689]
[1735092364446,23.776884,200.09,199.97,45.06525689]
[1735092364648,0.6471618,200.12,200.01,45.06525689]
[1735092364849,0.6471618,200.12,200.03,15.06525689]